bitfinex-derivatives/quotes_BTCF0:USTF0_20250719
["timestamp","ask_amount","ask_price","bid_price","bid_amount"]
[1752930931849,0.24075378,118330.0,118320.0,1.51056246]
[1752930932046,0.23975378,118330.0,118320.0,1.57680119]
[1752930932451,0.23975378,118330.0,118320.0,1.51056246]
[1752930933346,0.2220925,118330.0,118320.0,1.51056246]
[1752930935551,0.2412925,118330.0,118320.0,1.51056246]
[1752930936149,0.25894797,118330.0,118320.0,0.76065566]
[1752930936351,0.4375608,118330.0,118320.0,0.63717]
[1752930936551,0.4375608,118330.0,118320.0,0.93724566]
[1752930936755,0.27549797,118330.0,118320.0,0.77518283]
[1752930936955,0.27549797,118330.0,118320.0,0.93724566]
[1752930938153,0.27549797,118330.0,118320.0,0.35648566]
[1752930938359,0.27549797,118330.0,118320.0,0.93720566]
[1752930938659,0.27549797,118330.0,118320.0,0.96125566]
[1752930938856,0.27549797,118330.0,118320.0,0.93720566]
[1752930940252,0.27549797,118330.0,118320.0,0.96125566]
[1752930941059,0.27549797,118330.0,118320.0,0.98057566]
[1752930942761,0.27549797,118330.0,118320.0,0.65645]
[1752930942963,0.27549797,118330.0,118320.0,0.98057566]
[1752930949176,0.27549797,118330.0,118320.0,0.96125566]
[1752930949681,0.27549797,118330.0,118320.0,0.98057566]
[1752930952285,0.27549447,118330.0,118320.0,0.98057566]
[1752930957486,0.27549447,118330.0,118320.0,0.65645]
[1752930957683,0.27549447,118330.0,118320.0,0.98057566]
[1752930958086,0.4375573,118330.0,118320.0,0.98057566]
[1752930958287,0.27549447,118330.0,118320.0,0.98057566]
[1752930958489,0.7983573,118330.0,118320.0,0.03236]
[1752930958689,0.7983573,118330.0,118320.0,0.61308]
[1752930958890,0.7983573,118330.0,118320.0,0.77514283]
[1752930959690,0.7983573,118330.0,118320.0,0.61308]
[1752930959891,0.7983573,118330.0,118320.0,0.77514283]
[1752930960092,0.63629447,118330.0,118320.0,0.77514283]
[1752930960387,0.7983573,118330.0,118320.0,0.77514283]
[1752930961486,0.63629447,118330.0,118320.0,0.77514283]
[1752930961691,0.7983573,118330.0,118320.0,0.77514283]
[1752930961886,0.7983573,118330.0,118320.0,0.19442283]
[1752930962088,0.7983573,118330.0,118320.0,0.77518283]
[1752930963281,0.7983573,118330.0,118320.0,0.61312]
[1752930963486,0.7983573,118330.0,118320.0,0.77518283]
[1752930963790,0.7983573,118330.0,118320.0,0.19442283]
[1752930963991,0.7983573,118330.0,118320.0,0.77514283]
[1752930965789,0.7983573,118330.0,118320.0,0.61308]
[1752930965988,0.7983573,118330.0,118320.0,0.77514283]
[1752930965989,0.78070533,118330.0,118320.0,0.77514283]
[1752930966291,0.6186425,118330.0,118320.0,0.77514283]
[1752930966492,0.78070533,118330.0,118320.0,0.77514283]
[1752930968892,0.6186425,118330.0,118320.0,0.77514283]
[1752930969096,0.78070533,118330.0,118320.0,0.77514283]
[1752930969698,0.6186425,118330.0,118320.0,0.77514283]
[1752930969995,0.78070533,118330.0,118320.0,0.77514283]
[1752930970199,0.79834638,118330.0,118320.0,0.77514283]
[1752930971392,0.63628355,118330.0,118320.0,0.93720566]
[1752930971596,0.79834638,118330.0,118320.0,0.93720566]
[1752930972299,0.63628355,118330.0,118320.0,0.95986566]
[1752930972494,0.79834638,118330.0,118320.0,0.95986566]
[1752930972713,0.79834638,118330.0,118320.0,0.97918566]
[1752930972901,0.63628355,118330.0,118320.0,0.97918566]
[1752930976704,0.27548355,118330.0,118320.0,0.97918566]
[1752930978407,0.25893355,118330.0,118320.0,0.97918566]
[1752930978608,0.24297355,118330.0,118320.0,0.97918566]
[1752930979301,0.27533355,118330.0,118320.0,0.97918566]
[1752930981305,0.24297355,118330.0,118320.0,0.97918566]
[1752930984205,0.24297355,118330.0,118320.0,1.33998566]
[1752930985809,0.24297355,118330.0,118320.0,1.01586]
[1752930986013,0.24297355,118330.0,118320.0,1.33998566]
[1752930992720,0.23973355,118330.0,118320.0,1.50893246]
[1752930992914,0.21645355,118330.0,118320.0,1.33998566]
[1752930993114,0.21645355,118330.0,118320.0,1.50893246]
[1752930993518,0.18657355,118330.0,118320.0,1.67099529]
[1752930993721,0.18657355,118330.0,118320.0,1.50893246]
[1752930996418,0.18655073,118330.0,118320.0,1.50893246]
[1752930996918,0.18655073,118330.0,118320.0,1.67099529]
[1752930997120,0.18655073,118330.0,118320.0,1.50893246]
[1752930997320,0.1689325,118330.0,118320.0,1.50893246]
[1752930999723,0.1689325,118330.0,118320.0,1.86973246]
[1752931000415,0.1689325,118330.0,118320.0,1.14813246]
[1752931000614,0.1689325,118330.0,118320.0,1.86973246]
[1752931001127,0.1689325,118330.0,118320.0,2.03179529]
[1752931002834,0.36488689,118340.0,118330.0,0.2434025]
[1752931003027,0.38249966,118340.0,118330.0,0.92832816]
[1752931004335,0.38449966,118340.0,118330.0,0.92832816]
[1752931005635,0.40372966,118340.0,118330.0,0.92832816]
[1752931006134,0.41942966,118340.0,118330.0,0.92832816]
[1752931007633,0.34226706,118340.0,118330.0,0.92832816]
[1752931008036,0.23378306,118340.0,118330.0,0.92832816]
[1752931008331,0.19344029,118340.0,118330.0,0.6042025]
[1752931008635,0.19344029,118340.0,118330.0,0.92832816]
[1752931008935,0.23377835,118340.0,118330.0,0.92832816]
[1752931009336,0.23277835,118340.0,118330.0,0.92832816]
[1752931009832,0.21517029,118340.0,118330.0,0.92832816]
[1752931010035,0.23919029,118340.0,118330.0,0.92832816]
[1752931010737,0.23819029,118340.0,118330.0,0.92832816]
[1752931012536,0.21417029,118340.0,118330.0,0.6042025]
[1752931012737,0.21417029,118340.0,118330.0,0.92832816]
[1752931013234,0.23874029,118340.0,118330.0,0.92832816]
[1752931014636,0.2563438,118340.0,118330.0,0.92832816]
[1752931016536,0.23874029,118340.0,118330.0,0.92832816]
[1752931016932,0.3072489,118350.0,118340.0,0.2017782]
[1752931017238,0.3248517,118350.0,118340.0,1.53060737]
[1752931018037,0.3258517,118350.0,118340.0,1.53060737]
[1752931018341,0.3289617,118350.0,118340.0,1.53060737]
[1752931018543,0.3450517,118350.0,118340.0,1.53060737]
[1752931018844,0.3622317,118350.0,118340.0,1.53060737]
[1752931024642,0.3446289,118350.0,118340.0,1.53060737]
[1752931026336,0.3446289,118350.0,118340.0,1.67090737]
[1752931026544,0.3446289,118350.0,118340.0,1.53060737]
[1752931026744,0.2846789,118350.0,118340.0,1.53060737]
[1752931027843,0.2836789,118350.0,118340.0,1.53060737]
[1752931028049,0.3092489,118350.0,118340.0,1.53060737]
[1752931028741,0.3072489,118350.0,118340.0,1.53060737]
[1752931029346,0.3072489,118350.0,118340.0,1.36168917]
[1752931029539,0.3103589,118350.0,118340.0,1.36168917]
[1752931029735,0.3264489,118350.0,118340.0,1.36168917]
[1752931030443,0.3264489,118350.0,118340.0,1.53060747]
[1752931031447,0.2826789,118350.0,118340.0,1.53060747]
[1752931032242,0.3072489,118350.0,118340.0,1.53060747]
[1752931033246,0.3426289,118350.0,118340.0,1.53060747]
[1752931033446,0.3426289,118350.0,118340.0,1.36168917]
[1752931034242,0.3426289,118350.0,118340.0,1.53060747]
[1752931034442,0.36021491,118350.0,118340.0,1.53060747]
[1752931034646,0.32794491,118350.0,118340.0,1.53060747]
[1752931034945,0.32483491,118350.0,118340.0,1.53060747]
[1752931035345,0.30026491,118350.0,118340.0,1.53060747]
[1752931035546,0.30026491,118350.0,118340.0,1.20648181]
[1752931035746,0.32483491,118350.0,118340.0,1.36168917]
[1752931036149,0.32794491,118350.0,118340.0,1.53060747]
[1752931036449,0.34403491,118350.0,118340.0,1.53060747]
[1752931037251,0.36021491,118350.0,118340.0,1.53060747]
[1752931038552,0.36021491,118350.0,118340.0,0.94920747]
[1752931038850,0.36021491,118350.0,118340.0,1.53156747]
[1752931039450,0.36021491,118350.0,118340.0,0.94920747]
[1752931039645,0.36021491,118350.0,118340.0,1.53160747]
[1752931041055,0.32794491,118350.0,118340.0,1.6936703]
[1752931041351,0.32483491,118350.0,118340.0,1.53160747]
[1752931041544,0.32483491,118350.0,118340.0,1.20748181]
[1752931041746,0.32483491,118350.0,118340.0,0.62508181]
[1752931042057,0.32483491,118350.0,118340.0,1.53160747]
[1752931042452,0.32483491,118350.0,118340.0,0.94920747]
[1752931042756,0.32785491,118350.0,118340.0,1.53172747]
[1752931042950,0.36071491,118350.0,118340.0,1.53172747]
[1752931043149,0.36071491,118350.0,118340.0,0.78028917]
[1752931043453,0.36071491,118350.0,118340.0,1.36300917]
[1752931043650,0.36071491,118350.0,118340.0,0.78028917]
[1752931043852,0.36071491,118350.0,118340.0,1.36316917]
[1752931044052,0.36071491,118350.0,118340.0,1.36340917]
[1752931044252,0.36071491,118350.0,118340.0,0.78028917]
[1752931044752,0.36071491,118350.0,118340.0,1.36336917]
[1752931044954,0.36071491,118350.0,118340.0,1.36332917]
[1752931045458,0.36071491,118350.0,118340.0,0.78028917]
[1752931045651,0.36071491,118350.0,118340.0,1.36344917]
[1752931046045,0.36071491,118350.0,118340.0,0.78028917]
[1752931046246,0.36071491,118350.0,118340.0,1.36340917]
[1752931046753,0.36071491,118350.0,118340.0,0.78028917]
[1752931046952,0.36071491,118350.0,118340.0,1.36336917]
[1752931049457,0.36071491,118350.0,118340.0,1.03924351]
[1752931049654,0.36071491,118350.0,118340.0,1.36336917]
[1752931064267,0.36071491,118350.0,118340.0,1.53228757]
[1752931065367,0.36071491,118350.0,118340.0,1.36336917]
[1752931065976,0.36071491,118350.0,118340.0,1.03924351]
[1752931066161,0.36071491,118350.0,118340.0,1.36336917]
[1752931067162,0.36071491,118350.0,118340.0,0.78028917]
[1752931067363,0.36071491,118350.0,118340.0,1.36288917]
[1752931067765,0.52277774,118350.0,118340.0,0.79677634]
[1752931068668,0.52277774,118350.0,118340.0,0.63471351]
[1752931068864,0.52277774,118350.0,118340.0,0.79677634]
[1752931069662,0.52277774,118350.0,118340.0,0.63471351]
[1752931069862,0.36071491,118350.0,118340.0,0.79677634]
[1752931070063,0.36071491,118350.0,118340.0,0.98189917]
[1752931070368,0.36071491,118350.0,118340.0,1.00121917]
[1752931070761,0.36071491,118350.0,118340.0,0.67709351]
[1752931071166,0.36071491,118350.0,118340.0,1.00121917]
[1752931072869,0.52277774,118350.0,118340.0,1.00121917]
[1752931073869,0.36071491,118350.0,118340.0,1.00121917]
[1752931074171,0.36071491,118350.0,118340.0,0.67709351]
[1752931074369,0.36071491,118350.0,118340.0,1.00121917]
[1752931076672,0.52277774,118350.0,118340.0,1.00121917]
[1752931079776,0.52277774,118350.0,118340.0,0.83915634]
[1752931080075,0.52277774,118350.0,118340.0,0.79677634]
[1752931080775,0.52277774,118350.0,118340.0,0.82082634]
[1752931082575,0.36071491,118350.0,118340.0,0.98288917]
[1752931082776,0.36071491,118350.0,118340.0,1.00220917]
[1752931083070,0.3431289,118350.0,118340.0,1.00220917]
[1752931083375,0.3431289,118350.0,118340.0,1.36300917]
[1752931083771,0.3102689,118350.0,118340.0,1.36300917]
[1752931084274,0.32785281,118350.0,118340.0,1.36300917]
[1752931086673,0.32785281,118350.0,118340.0,1.03888351]
[1752931086874,0.32785281,118350.0,118340.0,1.36300917]
[1752931087472,0.34431281,118350.0,118340.0,1.36300917]
[1752931087672,0.35938281,118350.0,118340.0,1.36300917]
[1752931090581,0.35938281,118350.0,118340.0,1.03888351]
[1752931090878,0.35938281,118350.0,118340.0,1.36300917]
[1752931091079,0.35938281,118350.0,118340.0,1.03888351]
[1752931091281,0.35938281,118350.0,118340.0,0.67808351]
[1752931091482,0.35938281,118350.0,118340.0,1.00220917]
[1752931091979,0.35938281,118350.0,118340.0,1.36300917]
[1752931104503,0.32785281,118350.0,118340.0,1.36300917]
[1752931105798,0.34371281,118350.0,118340.0,1.36300917]
[1752931106202,0.35993281,118350.0,118340.0,1.36300917]
[1752931115710,0.35993281,118350.0,118340.0,1.03888351]
[1752931115912,0.35993281,118350.0,118340.0,1.36300917]
[1752931124719,0.32785281,118350.0,118340.0,1.36300917]
[1752931134023,0.32483281,118350.0,118340.0,1.36300917]
[1752931137830,0.34342281,118350.0,118340.0,1.36300917]
[1752931138127,0.36068125,118350.0,118340.0,1.36261929]
[1752931142232,0.37573125,118350.0,118340.0,1.36261929]
[1752931142524,0.34481125,118350.0,118340.0,1.36261929]
[1752931145030,0.36068125,118350.0,118340.0,1.36261929]
[1752931145427,0.37572338,118350.0,118340.0,1.36261929]
[1752931147731,0.37572338,118350.0,118340.0,1.03849363]
[1752931148032,0.37572338,118350.0,118340.0,1.36261929]
[1752931149434,0.37572338,118350.0,118340.0,1.00181929]
[1752931149637,0.37572338,118350.0,118340.0,1.36261929]
[1752931157829,0.36067338,118350.0,118340.0,1.36261929]
[1752931159337,0.37572338,118350.0,118340.0,1.36261929]
[1752931159538,0.37572583,118350.0,118340.0,1.36261929]
[1752931160731,0.34480583,118350.0,118340.0,1.36261929]
[1752931162033,0.03483693,118350.0,118340.0,1.76360052]
[1752931162231,0.03483693,118350.0,118340.0,1.98880052]
[1752931162432,0.01725844,118350.0,118340.0,1.98880052]
[1752931162633,0.2955761,118360.0,118350.0,0.1880841]
[1752931162935,0.31314643,118360.0,118350.0,0.89911976]
[1752931163131,0.33720643,118360.0,118350.0,0.89911976]
[1752931163332,0.33720607,118360.0,118350.0,0.89911976]
[1752931163837,0.3196361,118360.0,118350.0,0.89911976]
[1752931164038,0.3250761,118360.0,118350.0,0.89911976]
[1752931164940,0.3499361,118360.0,118350.0,0.89911976]
[1752931165132,0.3499361,118360.0,118350.0,0.90605955]
[1752931165437,0.3499361,118360.0,118350.0,0.41302979]
[1752931165637,0.3499361,118360.0,118350.0,0.73715545]
[1752931165835,0.3499361,118360.0,118350.0,0.90605945]
[1752931168341,0.3853161,118360.0,118350.0,1.31823545]
[1752931168542,0.3853161,118360.0,118350.0,1.15617262]
[1752931169740,0.3853161,118360.0,118350.0,0.57509262]
[1752931169946,0.3853161,118360.0,118350.0,1.15617262]
[1752931170251,0.3853161,118360.0,118350.0,1.31823545]
[1752931170746,0.3853161,118360.0,118350.0,1.45853545]
[1752931170943,0.3853161,118360.0,118350.0,1.31823545]
[1752931174146,0.3853161,118360.0,118350.0,0.73715545]
[1752931174347,0.3853161,118360.0,118350.0,1.31827545]
[1752931174548,0.3853161,118360.0,118350.0,1.48713955]
[1752931177150,0.3853161,118360.0,118350.0,1.31823545]
[1752931178049,0.3853161,118360.0,118350.0,1.48713955]
[1752931179453,0.3853161,118360.0,118350.0,1.31823545]
[1752931180252,0.3853161,118360.0,118350.0,0.90605955]
[1752931180452,0.3853161,118360.0,118350.0,1.48713955]
[1752931182261,0.3853161,118360.0,118350.0,1.31823545]
[1752931182860,0.3853161,118360.0,118350.0,1.48713955]
[1752931183061,0.3853161,118360.0,118350.0,1.31823545]
[1752931184462,0.3853161,118360.0,118350.0,1.48713955]
[1752931186668,0.3430906,118360.0,118350.0,1.48713955]
[1752931186869,0.3077106,118360.0,118350.0,1.48713955]
[1752931193479,0.3077106,118360.0,118350.0,1.54787544]
[1752931194772,0.32528812,118360.0,118350.0,1.54787544]
[1752931194978,0.30042812,118360.0,118350.0,1.48713955]
[1752931195568,0.32517812,118360.0,118350.0,1.48713955]
[1752931199281,0.32517812,118360.0,118350.0,0.90605955]
[1752931199581,0.32517812,118360.0,118350.0,1.48709955]
[1752931200083,0.30042812,118360.0,118350.0,1.48709955]
[1752931201679,0.32517812,118360.0,118350.0,1.48709955]
[1752931203283,0.35836812,118360.0,118350.0,1.48709955]
[1752931204684,0.35836812,118360.0,118350.0,1.31613545]
[1752931204875,0.35836812,118360.0,118350.0,1.15407262]
[1752931205379,0.35836812,118360.0,118350.0,0.21223262]
[1752931205584,0.52043095,118360.0,118350.0,0.79323262]
[1752931205781,0.52043095,118360.0,118350.0,0.21223262]
[1752931205976,0.52043095,118360.0,118350.0,0.79323262]
[1752931206182,0.35836812,118360.0,118350.0,0.79323262]
[1752931206578,0.35836812,118360.0,118350.0,0.60711979]
[1752931206784,0.52043095,118360.0,118350.0,0.76918262]
[1752931207176,0.35836812,118360.0,118350.0,0.76918262]
[1752931207586,0.35836812,118360.0,118350.0,0.79323262]
[1752931207987,0.35836812,118360.0,118350.0,0.21223262]
[1752931208183,0.88123095,118360.0,118350.0,0.76918262]
[1752931210889,0.71916812,118360.0,118350.0,0.76918262]
[1752931211091,0.88123095,118360.0,118350.0,0.76918262]
[1752931211484,0.71916812,118360.0,118350.0,0.76918262]
[1752931212187,0.71916812,118360.0,118350.0,0.18818262]
[1752931212386,0.71916812,118360.0,118350.0,0.76918262]
[1752931214195,0.35836812,118360.0,118350.0,0.76918262]
[1752931216699,0.35836812,118360.0,118350.0,0.79323262]
[1752931217794,0.3407906,118360.0,118350.0,0.79323262]
[1752931217994,0.35834677,118360.0,118350.0,0.79323262]
[1752931221197,0.35834677,118360.0,118350.0,1.15403262]
[1752931223096,0.35834677,118360.0,118350.0,0.99196979]
[1752931223403,0.35834677,118360.0,118350.0,1.15403262]
[1752931229306,0.35834677,118360.0,118350.0,0.99196979]
[1752931229608,0.35834677,118360.0,118350.0,1.15403262]
[1752931229800,0.5204096,118360.0,118350.0,1.15403262]
[1752931230907,0.35834677,118360.0,118350.0,1.15403262]
[1752931231108,0.35834677,118360.0,118350.0,0.99196979]
[1752931231308,0.5204096,118360.0,118350.0,0.79323262]
[1752931235411,0.35834677,118360.0,118350.0,0.79323262]
[1752931235605,0.5204096,118360.0,118350.0,0.79323262]
[1752931235913,0.35834677,118360.0,118350.0,0.79323262]
[1752931237910,0.35834677,118360.0,118350.0,0.79529262]
[1752931238515,0.35834677,118360.0,118350.0,0.95735545]
[1752931238719,0.35834677,118360.0,118350.0,0.79529262]
[1752931239321,0.35834677,118360.0,118350.0,1.15609262]
[1752931240817,0.35834677,118360.0,118350.0,0.79529262]
[1752931244424,0.35834677,118360.0,118350.0,1.15609262]
[1752931247732,0.35834677,118360.0,118350.0,0.99402979]
[1752931248027,0.35834677,118360.0,118350.0,1.15609262]
[1752931254934,0.35834677,118360.0,118350.0,0.99196979]
[1752931255130,0.35834677,118360.0,118350.0,1.15403262]
[1752931255629,0.35834677,118360.0,118350.0,0.57303262]
[1752931255830,0.5204096,118360.0,118350.0,1.15391262]
[1752931256730,0.5204096,118360.0,118350.0,0.57303262]
[1752931256936,0.69990279,118360.0,118350.0,0.60370979]
[1752931257434,1.06070279,118360.0,118350.0,0.76577262]
[1752931258437,0.73657713,118360.0,118350.0,0.76577262]
[1752931258637,1.06070279,118360.0,118350.0,0.60370979]
[1752931258837,0.89863996,118360.0,118350.0,0.60370979]
[1752931259536,0.89863996,118360.0,118350.0,0.76577262]
[1752931260630,0.73657713,118360.0,118350.0,0.76577262]
[1752931260834,0.89863996,118360.0,118350.0,0.76577262]
[1752931264741,0.89863996,118360.0,118350.0,0.60370979]
[1752931264943,0.89863996,118360.0,118350.0,0.76577262]
[1752931268340,0.89863996,118360.0,118350.0,0.60370979]
[1752931268541,0.89863996,118360.0,118350.0,0.76577262]
[1752931269843,0.89863996,118360.0,118350.0,0.60370979]
[1752931270041,0.89863996,118360.0,118350.0,0.76577262]
[1752931271541,0.53783996,118360.0,118350.0,0.76577262]
[1752931271741,0.89863996,118360.0,118350.0,0.76577262]
[1752931272236,0.89863996,118360.0,118350.0,0.60370979]
[1752931272545,0.89863996,118360.0,118350.0,0.76577262]
[1752931275044,0.37577713,118360.0,118350.0,0.79242262]
[1752931275243,0.37577713,118360.0,118350.0,0.21154262]
[1752931275443,0.37577713,118360.0,118350.0,0.79238262]
[1752931281045,0.53783996,118360.0,118350.0,0.79238262]
[1752931286952,0.53783996,118360.0,118350.0,0.63031979]
[1752931287149,0.53783996,118360.0,118350.0,0.79238262]
[1752931289956,0.53783996,118360.0,118350.0,0.63031979]
[1752931290158,0.53783996,118360.0,118350.0,0.79238262]
[1752931294260,0.53783996,118360.0,118350.0,0.63031979]
[1752931294459,0.89863996,118360.0,118350.0,0.79238262]
[1752931295259,0.89863996,118360.0,118350.0,0.76902262]
[1752931296958,0.89863996,118360.0,118350.0,0.79307262]
[1752931300263,0.53783996,118360.0,118350.0,0.79307262]
[1752931300660,0.89863996,118360.0,118350.0,0.79307262]
[1752931301763,0.53783996,118360.0,118350.0,0.79307262]
[1752931313988,0.53783996,118360.0,118350.0,0.63100979]
[1752931314188,0.53783996,118360.0,118350.0,0.79307262]
[1752931314388,0.53783996,118360.0,118350.0,0.63100979]
[1752931314589,0.53783996,118360.0,118350.0,0.79307262]
[1752931314888,0.53783996,118360.0,118350.0,0.63100979]
[1752931315089,0.53783996,118360.0,118350.0,0.79307262]
[1752931315490,1.06070279,118360.0,118350.0,0.60683979]
[1752931316292,1.06070279,118360.0,118350.0,0.60354979]
[1752931317782,0.1689041,118350.0,118340.0,0.01902984]
[1752931317986,0.3406228,118340.0,118330.0,0.01517]
[1752931318182,1.12755697,118340.0,118330.0,0.59585]
[1752931318994,1.12755697,118340.0,118330.0,0.60358399]
[1752931319188,0.96549414,118340.0,118330.0,0.60358399]
[1752931319393,1.14455339,118340.0,118330.0,0.60358399]
[1752931319691,1.14555339,118340.0,118330.0,0.60358399]
[1752931321088,0.78475339,118340.0,118330.0,0.60358399]
[1752931321382,0.62469056,118340.0,118330.0,0.60358399]
[1752931321589,0.98549056,118340.0,118330.0,0.60358399]
[1752931321787,0.60714725,118340.0,118330.0,0.76893682]
[1752931321989,0.98550028,118340.0,118330.0,0.76893682]
[1752931322293,0.62470028,118340.0,118330.0,0.76893682]
[1752931322894,0.98550028,118340.0,118330.0,0.76893682]
[1752931323394,0.98550028,118340.0,118330.0,0.60687399]
[1752931323596,0.98550028,118340.0,118330.0,0.76893682]
[1752931323796,0.98550028,118340.0,118330.0,0.60687399]
[1752931324096,1.14756311,118340.0,118330.0,0.60687399]
[1752931324293,1.14756311,118340.0,118330.0,0.60358399]
[1752931327991,1.14756311,118340.0,118330.0,0.60362399]
[1752931329293,0.82343745,118340.0,118330.0,0.60362399]
[1752931329493,0.98550028,118340.0,118330.0,0.60362399]
[1752931330693,0.82343745,118340.0,118330.0,0.60362399]
[1752931330892,0.98550028,118340.0,118330.0,0.60362399]
[1752931332693,0.98550028,118340.0,118330.0,0.02290399]
[1752931332898,1.14756311,118340.0,118330.0,0.00773399]
[1752931333098,0.1876726,118330.0,118320.0,0.75795283]
[1752931333299,0.79655564,118330.0,118320.0,0.75795283]
[1752931333498,0.79655564,118330.0,118320.0,0.76124283]
[1752931333995,0.43575564,118330.0,118320.0,0.76124283]
[1752931334195,0.41823543,118330.0,118320.0,0.76124283]
[1752931334397,0.41823543,118330.0,118320.0,0.78529283]
[1752931334594,0.2561726,118330.0,118320.0,0.78529283]
[1752931334796,0.43575491,118330.0,118320.0,0.78529283]
[1752931335601,0.79655491,118330.0,118320.0,0.78529283]
[1752931336304,0.43575491,118330.0,118320.0,0.62323]
[1752931336503,0.43575491,118330.0,118320.0,0.78529283]
[1752931336998,0.43575491,118330.0,118320.0,0.79294633]
[1752931338206,0.63449208,118330.0,118320.0,0.79294633]
[1752931338406,0.79655491,118330.0,118320.0,0.79294633]
[1752931340603,0.79655491,118330.0,118320.0,0.6308835]
[1752931340807,0.43575491,118330.0,118320.0,0.79294633]
[1752931341201,0.79655491,118330.0,118320.0,0.79294633]
[1752931342702,0.79655491,118330.0,118320.0,0.76889633]
[1752931343206,0.79655491,118330.0,118320.0,0.79267633]
[1752931345812,0.43575491,118330.0,118320.0,0.79267633]
[1752931346011,0.79655491,118330.0,118320.0,0.79267633]
[1752931346213,0.79655491,118330.0,118320.0,0.21195633]
[1752931346414,0.79655491,118330.0,118320.0,0.79267633]
[1752931347914,0.63449208,118330.0,118320.0,0.79267633]
[1752931348113,0.79655491,118330.0,118320.0,0.79267633]
[1752931348314,0.79655491,118330.0,118320.0,0.6068335]
[1752931348508,0.79655491,118330.0,118320.0,0.0076535]
[1752931348716,0.95861774,118330.0,118320.0,0.58072]
[1752931348912,0.79655491,118330.0,118320.0,0.58072]
[1752931349618,1.29655491,118330.0,118320.0,0.58859124]
[1752931349816,1.29655491,118330.0,118320.0,0.60365124]
[1752931353218,1.29655491,118330.0,118320.0,0.59578]
[1752931353419,0.2559973,118320.0,118310.0,0.59907]
[1752931353718,0.9758374,118320.0,118310.0,0.59907]
[1752931354912,0.9758374,118320.0,118310.0,0.60007]
[1752931355516,0.9758374,118320.0,118310.0,0.59678]
[1752931355716,0.9758374,118320.0,118310.0,0.60449219]
[1752931356111,0.9758374,118320.0,118310.0,0.00871219]
[1752931356327,1.04444556,118320.0,118310.0,0.00871219]
[1752931356616,1.54444556,118320.0,118310.0,0.00871219]
[1752931356816,1.4758374,118320.0,118310.0,0.00871219]
[1752931359713,1.4758374,118320.0,118310.0,0.001]
[1752931359915,0.2266861,118300.0,118290.0,0.04213]
[1752931360118,0.43519115,118300.0,118290.0,0.8311256]
[1752931360320,0.43519115,118300.0,118290.0,0.66906277]
[1752931360819,0.43519115,118300.0,118290.0,0.8311256]
[1752931361214,0.41808893,118300.0,118290.0,0.8311256]
[1752931361919,0.42008893,118300.0,118290.0,0.8311256]
[1752931362120,0.42008893,118300.0,118290.0,0.66906277]
[1752931362316,0.42008893,118300.0,118290.0,0.8311256]
[1752931363121,0.42108893,118300.0,118290.0,0.8311256]
[1752931363720,0.42108893,118300.0,118290.0,0.83909133]
[1752931364620,0.42108893,118300.0,118290.0,0.6770285]
[1752931364821,0.42108893,118300.0,118290.0,0.83909133]
[1752931365219,0.2590261,118300.0,118290.0,0.83909133]
[1752931365419,0.42108893,118300.0,118290.0,0.83909133]
[1752931365620,0.42108893,118300.0,118290.0,0.6770285]
[1752931365818,0.42108893,118300.0,118290.0,0.83909133]
[1752931366219,0.27583146,118300.0,118290.0,1.36401416]
[1752931366621,0.24085146,118300.0,118290.0,1.36401416]
[1752931366921,0.24085146,118300.0,118290.0,1.20195133]
[1752931368222,0.24085146,118300.0,118290.0,1.36401416]
[1752931369722,0.18878146,118300.0,118290.0,1.53300476]
[1752931371027,0.18878146,118300.0,118290.0,1.42494159]
[1752931371321,0.18778146,118300.0,118290.0,1.42494159]
[1752931372127,0.18678146,118300.0,118290.0,1.42494159]
[1752931373226,0.18678146,118300.0,118290.0,1.37936882]
[1752931375323,0.18678146,118300.0,118290.0,1.44010471]
[1752931377729,0.18678146,118300.0,118290.0,1.80090471]
[1752931382332,0.01780536,118300.0,118290.0,1.80090471]
[1752931382533,0.3250414,118310.0,118300.0,0.1905663]
[1752931382730,0.3250414,118310.0,118300.0,0.76742879]
[1752931383031,0.3484414,118310.0,118300.0,0.76742879]
[1752931384434,0.3494414,118310.0,118300.0,0.76742879]
[1752931384834,0.3494414,118310.0,118300.0,0.81301723]
[1752931385234,0.3514414,118310.0,118300.0,0.81301723]
[1752931389340,0.3514414,118310.0,118300.0,0.59695474]
[1752931389545,0.3514414,118310.0,118300.0,0.81301723]
[1752931390535,0.3514414,118310.0,118300.0,0.95331723]
[1752931390742,0.3514414,118310.0,118300.0,0.81301723]
[1752931392942,0.3514414,118310.0,118300.0,0.92104176]
[1752931394844,0.3514414,118310.0,118300.0,0.87545332]
[1752931398848,0.3514414,118310.0,118300.0,0.51465332]
[1752931399050,0.3514414,118310.0,118300.0,0.87545332]
[1752931399245,0.3514414,118310.0,118300.0,0.93618921]
[1752931401451,0.3691414,118310.0,118300.0,0.93618921]
[1752931401652,0.3843014,118310.0,118300.0,0.93618921]
[1752931404558,0.2111782,118330.0,118320.0,0.3342925]
[1752931404762,0.28853342,118340.0,118330.0,0.2498231]
[1752931404954,0.28853342,118340.0,118330.0,0.93471012]
[1752931405153,0.30369342,118340.0,118330.0,0.93471012]
[1752931405856,0.30569342,118340.0,118330.0,0.93471012]
[1752931406456,0.35622342,118340.0,118330.0,0.93471012]
[1752931406665,0.35822342,118340.0,118330.0,0.93471012]
[1752931406961,0.35822342,118340.0,118330.0,0.82657525]
[1752931407461,0.35822342,118340.0,118330.0,0.87214375]
[1752931409162,0.34306342,118340.0,118330.0,0.87214375]
[1752931409362,0.32727342,118340.0,118330.0,0.87214375]
[1752931409756,0.35822342,118340.0,118330.0,0.87214375]
[1752931410765,0.35822342,118340.0,118330.0,0.51134375]
[1752931410965,0.35822342,118340.0,118330.0,1.23294375]
[1752931411666,0.35822342,118340.0,118330.0,1.30062098]
[1752931413862,0.30083132,118340.0,118330.0,1.30062098]
[1752931419271,0.30083132,118340.0,118330.0,1.08466883]
[1752931419463,0.30083132,118340.0,118330.0,1.30062098]
[1752931421869,0.23016132,118340.0,118330.0,1.30062098]
[1752931423870,0.25913132,118340.0,118330.0,1.30062098]
[1752931424968,0.25913132,118340.0,118330.0,1.25505248]
[1752931425567,0.28269132,118340.0,118330.0,1.25505248]
[1752931426971,0.28269132,118340.0,118330.0,1.36299661]
[1752931427275,0.28269132,118340.0,118330.0,1.40856511]
[1752931434980,0.28269132,118340.0,118330.0,1.36299661]
[1752931436382,0.18791542,118340.0,118330.0,1.36299661]
[1752931436579,0.18791542,118340.0,118330.0,1.03910033]
[1752931436780,0.18791542,118340.0,118330.0,1.4237325]
[1752931440583,0.170919,118340.0,118330.0,1.4237325]
[1752931441182,0.176369,118340.0,118330.0,1.4237325]
[1752931441385,0.174369,118340.0,118330.0,1.4247325]
[1752931442082,0.199019,118340.0,118330.0,1.4247325]
[1752931442282,0.222099,118340.0,118330.0,1.4247325]
[1752931443884,0.222099,118340.0,118330.0,0.7031325]
[1752931444088,0.222099,118340.0,118330.0,1.4247325]
[1752931446288,0.240579,118340.0,118330.0,1.4247325]
[1752931446586,0.257209,118340.0,118330.0,1.4247325]
[1752931453594,0.257209,118340.0,118330.0,1.10083622]
[1752931453893,0.257209,118340.0,118330.0,1.4247325]
[1752931456294,0.257209,118340.0,118330.0,1.5650325]